[Event "Titled Tuesday Blitz January 17 Early 2023"]
[White "Predke, Alexandr"]
[Black "Kochetov, Andrey"]
[WhiteFideId "24107581"]
[BlackFideId "24130532"]
[WhiteElo "2685"]
[BlackElo "2165"]
[Result "1-0"]
[Round "04"]
[TimeControl "180+2"]
[Date "2023.01.17"]
[WhiteClock "0:00:07"]
[BlackClock "0:00:02"]

1. e4 {[%clk 0:02:55]}  c5 {[%clk 0:02:57]} 2. Nf3 {[%clk 0:02:55]}  d6 {[%clk 0:02:57]} 3. Nc3 {[%clk 0:02:53]}  Nf6 {[%clk 0:02:56]} 4. h3 {[%clk 0:02:50]}  Nc6 {[%clk 0:02:50]} 5. d4 {[%clk 0:02:47]}  cxd4 {[%clk 0:02:50]} 6. Nxd4 {[%clk 0:02:48]}  g6 {[%clk 0:02:40]} 7. Be3 {[%clk 0:02:46]}  Bg7 {[%clk 0:02:40]} 8. Qd2 {[%clk 0:02:45]}  Bd7 {[%clk 0:02:21]} 9. O-O-O {[%clk 0:02:43]}  Rc8 {[%clk 0:02:11]} 10. Kb1 {[%clk 0:02:40]}  O-O {[%clk 0:02:03]} 11. Nxc6 {[%clk 0:02:25]}  Bxc6 {[%clk 0:01:44]} 12. f3 {[%clk 0:02:18]}  a6 {[%clk 0:01:33]} 13. Bh6 {[%clk 0:02:13]}  b5 {[%clk 0:01:06]} 14. Bd3 {[%clk 0:02:12]}  Qb6 {[%clk 0:01:03]} 15. h4 {[%clk 0:02:08]}  b4 {[%clk 0:00:57]} 16. Ne2 {[%clk 0:02:08]}  Qc5 {[%clk 0:00:41]} 17. h5 {[%clk 0:02:00]}  Nxh5 {[%clk 0:00:41]} 18. g4 {[%clk 0:01:54]}  Qe5 {[%clk 0:00:22]} 19. Bxg7 {[%clk 0:01:51]}  Nxg7 {[%clk 0:00:16]} 20. Qh6 {[%clk 0:01:41]}  f6 {[%clk 0:00:15]} 21. f4 {[%clk 0:01:28]}  Qc5 {[%clk 0:00:13]} 22. Qxh7+ {[%clk 0:01:13]}  Kf7 {[%clk 0:00:13]} 23. Rh6 {[%clk 0:01:14]}  Bb5 {[%clk 0:00:08]} 24. Qxg6+ {[%clk 0:01:12]}  Ke6 {[%clk 0:00:07]} 25. c4 {[%clk 0:00:30]}  Bxc4 {[%clk 0:00:05]} 26. Bxc4+ {[%clk 0:00:28]}  Qxc4 {[%clk 0:00:06]} 27. Nd4+ {[%clk 0:00:28]}  Kd7 {[%clk 0:00:06]} 28. Qxg7 {[%clk 0:00:20]}  Rg8 {[%clk 0:00:06]} 29. Qh7 {[%clk 0:00:19]}  Rcf8 {[%clk 0:00:01]} 30. Qf5+ {[%clk 0:00:17]}  Kd8 {[%clk 0:00:01]} 31. Ne6+ {[%clk 0:00:15]}  Ke8 {[%clk 0:00:01]} 32. Nxf8 {[%clk 0:00:09]}  Kxf8 {[%clk 0:00:02]} 33. Rc1 {[%clk 0:00:07]}  Qd3+ {[%clk 0:00:02]} 34. Ka1 {[%clk 0:00:08]}  Kg7 {[%clk 0:00:02]} 35. Rh7+ {[%clk 0:00:07]}  Kf8 {[%clk 0:00:02]} 36. Rc8# {[%clk 0:00:07]} 1-0


[Site "https://www.chess.com"]

[Event "Titled Tuesday Blitz January 17 Early 2023"]
[White "Grandelius, Nils"]
[Black "Iskusnyh, Sergei"]
[WhiteFideId "1710400"]
[BlackFideId "4120027"]
[WhiteElo "2664"]
[BlackElo "2440"]
[Result "1/2-1/2"]
[Round "04"]
[TimeControl "180+2"]
[Date "2023.01.17"]
[WhiteClock "0:00:04"]
[BlackClock "0:00:07"]

1. e4 {[%clk 0:03:00]}  e6 {[%clk 0:02:59]} 2. Qe2 {[%clk 0:02:59]}  c5 {[%clk 0:02:57]} 3. Nf3 {[%clk 0:02:59]}  Nc6 {[%clk 0:02:57]} 4. g3 {[%clk 0:03:00]}  g6 {[%clk 0:02:57]} 5. Bg2 {[%clk 0:02:57]}  Bg7 {[%clk 0:02:57]} 6. O-O {[%clk 0:02:58]}  Nge7 {[%clk 0:02:56]} 7. c3 {[%clk 0:02:56]}  O-O {[%clk 0:02:53]} 8. d4 {[%clk 0:02:48]}  d6 {[%clk 0:02:37]} 9. Be3 {[%clk 0:02:43]}  b6 {[%clk 0:02:33]} 10. Na3 {[%clk 0:02:39]}  Bb7 {[%clk 0:02:31]} 11. Rfd1 {[%clk 0:02:35]}  Qb8 {[%clk 0:02:19]} 12. d5 {[%clk 0:02:26]}  exd5 {[%clk 0:01:58]} 13. exd5 {[%clk 0:02:27]}  Na5 {[%clk 0:01:49]} 14. c4 {[%clk 0:02:16]}  Nf5 {[%clk 0:01:45]} 15. Bf4 {[%clk 0:02:16]}  Re8 {[%clk 0:01:29]} 16. Qc2 {[%clk 0:02:12]}  a6 {[%clk 0:01:21]} 17. Rab1 {[%clk 0:02:07]}  Bc8 {[%clk 0:01:16]} 18. Qa4 {[%clk 0:01:55]}  Re7 {[%clk 0:00:55]} 19. Re1 {[%clk 0:01:45]}  Bd7 {[%clk 0:00:54]} 20. Qc2 {[%clk 0:01:45]}  Qe8 {[%clk 0:00:43]} 21. Rxe7 {[%clk 0:01:42]}  Qxe7 {[%clk 0:00:43]} 22. Re1 {[%clk 0:01:05]}  Qf8 {[%clk 0:00:43]} 23. Nb1 {[%clk 0:00:57]}  Re8 {[%clk 0:00:41]} 24. Rxe8 {[%clk 0:00:52]}  Qxe8 {[%clk 0:00:41]} 25. Nbd2 {[%clk 0:00:53]}  b5 {[%clk 0:00:39]} 26. b3 {[%clk 0:00:44]}  Nd4 {[%clk 0:00:27]} 27. Nxd4 {[%clk 0:00:38]}  Qe1+ {[%clk 0:00:28]} 28. Bf1 {[%clk 0:00:36]}  Bxd4 {[%clk 0:00:28]} 29. Nf3 {[%clk 0:00:35]}  Qa1 {[%clk 0:00:22]} 30. Nxd4 {[%clk 0:00:22]}  cxd4 {[%clk 0:00:19]} 31. Bxd6 {[%clk 0:00:20]}  Bh3 {[%clk 0:00:18]} 32. Qe2 {[%clk 0:00:21]}  bxc4 {[%clk 0:00:14]} 33. Qe8+ {[%clk 0:00:13]}  Kg7 {[%clk 0:00:14]} 34. Bf8+ {[%clk 0:00:14]}  Kf6 {[%clk 0:00:12]} 35. Qe7+ {[%clk 0:00:15]}  Kf5 {[%clk 0:00:11]} 36. Qxf7+ {[%clk 0:00:14]}  Ke4 {[%clk 0:00:10]} 37. Qe7+ {[%clk 0:00:05]}  Kxd5 {[%clk 0:00:09]} 38. bxc4+ {[%clk 0:00:06]}  Kc6 {[%clk 0:00:10]} 39. Qc5+ {[%clk 0:00:04]}  Kd7 {[%clk 0:00:09]} 40. Qd5+ {[%clk 0:00:03]}  Ke8 {[%clk 0:00:08]} 41. Qa8+ {[%clk 0:00:03]}  Kf7 {[%clk 0:00:07]} 42. Qf3+ {[%clk 0:00:03]}  Ke8 {[%clk 0:00:07]} 43. Qa8+ {[%clk 0:00:03]}  Kf7 {[%clk 0:00:07]} 44. Qf3+ {[%clk 0:00:04]}  Ke8 {[%clk 0:00:07]} 45. Qa8+ {[%clk 0:00:04]} 1/2-1/2


[Site "https://www.chess.com"]

[Event "Titled Tuesday Blitz January 17 Early 2023"]
[White "Moroni, Luca Jr"]
[Black "Skatchkov, Valery"]
[WhiteFideId "865834"]
[BlackFideId "24195812"]
[WhiteElo "2535"]
[BlackElo "2167"]
[Result "0-1"]
[Round "04"]
[TimeControl "180+2"]
[Date "2023.01.17"]
[WhiteClock "0:01:07"]
[BlackClock "0:00:36"]

1. d4 {[%clk 0:03:00]}  Nf6 {[%clk 0:02:54]} 2. c4 {[%clk 0:03:01]}  e6 {[%clk 0:02:52]} 3. Nc3 {[%clk 0:03:01]}  Bb4 {[%clk 0:02:15]} 4. Nf3 {[%clk 0:03:00]}  b6 {[%clk 0:02:11]} 5. e3 {[%clk 0:03:00]}  O-O {[%clk 0:02:10]} 6. Bd3 {[%clk 0:03:01]}  Bb7 {[%clk 0:02:05]} 7. O-O {[%clk 0:03:01]}  d6 {[%clk 0:02:06]} 8. Ne2 {[%clk 0:02:44]}  Bxf3 {[%clk 0:02:01]} 9. gxf3 {[%clk 0:02:44]}  d5 {[%clk 0:02:01]} 10. Ng3 {[%clk 0:02:33]}  c6 {[%clk 0:01:57]} 11. b3 {[%clk 0:02:32]}  Nbd7 {[%clk 0:01:54]} 12. Bb2 {[%clk 0:02:32]}  a5 {[%clk 0:01:40]} 13. Rc1 {[%clk 0:02:25]}  Bd6 {[%clk 0:01:35]} 14. f4 {[%clk 0:02:25]}  Kh8 {[%clk 0:01:31]} 15. Kh1 {[%clk 0:02:25]}  Rg8 {[%clk 0:01:32]} 16. Rg1 {[%clk 0:02:24]}  Qb8 {[%clk 0:01:22]} 17. Qf3 {[%clk 0:02:21]}  a4 {[%clk 0:01:21]} 18. Bb1 {[%clk 0:02:11]}  axb3 {[%clk 0:01:20]} 19. axb3 {[%clk 0:02:12]}  Ba3 {[%clk 0:01:19]} 20. Qe2 {[%clk 0:02:01]}  Bxb2 {[%clk 0:01:18]} 21. Qxb2 {[%clk 0:02:02]}  c5 {[%clk 0:01:16]} 22. f5 {[%clk 0:01:55]}  e5 {[%clk 0:01:11]} 23. cxd5 {[%clk 0:01:50]}  exd4 {[%clk 0:01:06]} 24. e4 {[%clk 0:01:43]}  Qf4 {[%clk 0:01:01]} 25. Qe2 {[%clk 0:01:37]}  Ne5 {[%clk 0:01:00]} 26. Kg2 {[%clk 0:01:30]}  Ra1 {[%clk 0:00:59]} 27. Bd3 {[%clk 0:01:24]}  Rxc1 {[%clk 0:00:57]} 28. Rxc1 {[%clk 0:01:22]}  Qxc1 {[%clk 0:00:57]} 29. Bb5 {[%clk 0:01:19]}  Qc3 {[%clk 0:00:55]} 30. f4 {[%clk 0:01:18]}  d3 {[%clk 0:00:53]} 31. Qe3 {[%clk 0:01:13]}  Qc2+ {[%clk 0:00:44]} 32. Kh3 {[%clk 0:01:12]}  Neg4 {[%clk 0:00:43]} 33. Qg1 {[%clk 0:01:11]}  d2 {[%clk 0:00:40]} 34. Be2 {[%clk 0:01:11]}  d1=Q {[%clk 0:00:39]} 35. Bxd1 {[%clk 0:01:10]}  Qxd1 {[%clk 0:00:40]} 36. Qxd1 {[%clk 0:01:10]}  Nf2+ {[%clk 0:00:41]} 37. Kg2 {[%clk 0:01:11]}  Nxd1 {[%clk 0:00:42]} 38. Kf3 {[%clk 0:01:11]}  Nc3 {[%clk 0:00:41]} 39. d6 {[%clk 0:01:12]}  Rd8 {[%clk 0:00:34]} 40. e5 {[%clk 0:01:12]}  Ne8 {[%clk 0:00:35]} 41. Nh5 {[%clk 0:01:07]}  Nxd6 {[%clk 0:00:35]} 42. exd6 {[%clk 0:01:08]}  Rxd6 {[%clk 0:00:36]} 43. Ke3 {[%clk 0:01:08]}  Kg8 {[%clk 0:00:35]} 44. h3 {[%clk 0:01:07]}  Kf8 {[%clk 0:00:36]} 45. Ng3 {[%clk 0:01:07]}  b5 {[%clk 0:00:36]} 0-1


[Site "https://www.chess.com"]

[Event "Titled Tuesday Blitz January 17 Early 2023"]
[White "Paichadze, Luka"]
[Black "Divya Deshmukh"]
[WhiteFideId "13602934"]
[BlackFideId "35006916"]
[WhiteElo "2515"]
[BlackElo "2372"]
[Result "1-0"]
[Round "04"]
[TimeControl "180+2"]
[Date "2023.01.17"]
[WhiteClock "0:01:27"]
[BlackClock "0:00:21"]

1. e4 {[%clk 0:03:00]}  c5 {[%clk 0:02:58]} 2. b3 {[%clk 0:03:00]}  Nc6 {[%clk 0:02:57]} 3. Bb2 {[%clk 0:03:00]}  e6 {[%clk 0:02:56]} 4. Bb5 {[%clk 0:02:59]}  d5 {[%clk 0:02:55]} 5. Qe2 {[%clk 0:02:52]}  dxe4 {[%clk 0:02:52]} 6. Bxc6+ {[%clk 0:02:49]}  bxc6 {[%clk 0:02:51]} 7. Qxe4 {[%clk 0:02:49]}  Qd5 {[%clk 0:02:52]} 8. Nc3 {[%clk 0:02:43]}  Qxe4+ {[%clk 0:02:48]} 9. Nxe4 {[%clk 0:02:44]}  f5 {[%clk 0:02:44]} 10. Ng5 {[%clk 0:02:34]}  Nf6 {[%clk 0:02:41]} 11. N5f3 {[%clk 0:02:24]}  Bd6 {[%clk 0:02:40]} 12. Ne5 {[%clk 0:02:22]}  O-O {[%clk 0:02:35]} 13. Ngf3 {[%clk 0:02:21]}  Bb7 {[%clk 0:02:27]} 14. d3 {[%clk 0:02:21]}  a5 {[%clk 0:02:25]} 15. a4 {[%clk 0:02:17]}  Nd5 {[%clk 0:02:23]} 16. O-O-O {[%clk 0:02:14]}  Nf4 {[%clk 0:02:09]} 17. g3 {[%clk 0:02:13]}  Ne2+ {[%clk 0:02:09]} 18. Kb1 {[%clk 0:02:06]}  Nd4 {[%clk 0:02:05]} 19. Rhe1 {[%clk 0:01:56]}  Nxf3 {[%clk 0:02:02]} 20. Nxf3 {[%clk 0:01:55]}  Rae8 {[%clk 0:02:00]} 21. Ne5 {[%clk 0:01:55]}  Bc7 {[%clk 0:01:54]} 22. f4 {[%clk 0:01:54]}  Rd8 {[%clk 0:01:43]} 23. Ba3 {[%clk 0:01:50]}  Bxe5 {[%clk 0:01:26]} 24. Rxe5 {[%clk 0:01:49]}  Rfe8 {[%clk 0:01:23]} 25. Rde1 {[%clk 0:01:46]}  Kf7 {[%clk 0:01:17]} 26. Rxc5 {[%clk 0:01:46]}  Rd5 {[%clk 0:01:17]} 27. Re5 {[%clk 0:01:45]}  Ra8 {[%clk 0:00:47]} 28. Bb2 {[%clk 0:01:45]}  g6 {[%clk 0:00:41]} 29. Bc3 {[%clk 0:01:43]}  Ke7 {[%clk 0:00:34]} 30. Bxa5 {[%clk 0:01:40]}  Kd6 {[%clk 0:00:32]} 31. Bb4 {[%clk 0:01:39]}  Rxc5 {[%clk 0:00:29]} 32. Bxc5+ {[%clk 0:01:37]}  Kd7 {[%clk 0:00:29]} 33. Kb2 {[%clk 0:01:35]}  h5 {[%clk 0:00:29]} 34. h4 {[%clk 0:01:34]}  Ra5 {[%clk 0:00:29]} 35. c4 {[%clk 0:01:32]}  Ra8 {[%clk 0:00:28]} 36. d4 {[%clk 0:01:31]}  Ba6 {[%clk 0:00:22]} 37. Kc3 {[%clk 0:01:30]}  Rb8 {[%clk 0:00:23]} 38. b4 {[%clk 0:01:29]}  Rb7 {[%clk 0:00:21]} 39. b5 {[%clk 0:01:28]}  cxb5 {[%clk 0:00:21]} 40. axb5 {[%clk 0:01:28]}  Bxb5 {[%clk 0:00:22]} 41. cxb5 {[%clk 0:01:28]}  Rxb5 {[%clk 0:00:23]} 42. Bb4 {[%clk 0:01:27]}  Rb6 {[%clk 0:00:21]} 43. Ra5 {[%clk 0:01:27]}  Rc6+ {[%clk 0:00:21]} 44. Bc5 {[%clk 0:01:27]}  Rc7 {[%clk 0:00:20]} 45. Ra7 {[%clk 0:01:26]}  Rxa7 {[%clk 0:00:20]} 46. Bxa7 {[%clk 0:01:26]}  Kd6 {[%clk 0:00:20]} 47. Kc4 {[%clk 0:01:27]}  Kc6 {[%clk 0:00:21]} 48. Bc5 {[%clk 0:01:27]} 1-0


[Site "https://www.chess.com"]

[Event "Titled Tuesday Blitz January 17 Early 2023"]
[White "Ginzburg, Yakov"]
[Black "Galchenko, Matvey"]
[WhiteFideId "4157176"]
[BlackFideId "24175480"]
[WhiteElo "2405"]
[BlackElo "2438"]
[Result "0-1"]
[Round "04"]
[TimeControl "180+2"]
[Date "2023.01.17"]
[WhiteClock "0:00:01"]
[BlackClock "0:00:17"]

1. e4 {[%clk 0:02:24]}  e6 {[%clk 0:03:00]} 2. d4 {[%clk 0:02:23]}  d5 {[%clk 0:03:00]} 3. e5 {[%clk 0:02:24]}  c5 {[%clk 0:03:00]} 4. Qg4 {[%clk 0:02:24]}  cxd4 {[%clk 0:02:51]} 5. Bd3 {[%clk 0:02:23]}  Ne7 {[%clk 0:02:47]} 6. Nf3 {[%clk 0:02:15]}  Nec6 {[%clk 0:02:47]} 7. O-O {[%clk 0:02:08]}  Nd7 {[%clk 0:02:45]} 8. Bf4 {[%clk 0:02:04]}  Nc5 {[%clk 0:02:30]} 9. Nbd2 {[%clk 0:01:42]}  Bd7 {[%clk 0:02:16]} 10. Nb3 {[%clk 0:01:38]}  Nxd3 {[%clk 0:02:16]} 11. cxd3 {[%clk 0:01:39]}  Qb6 {[%clk 0:02:17]} 12. Rac1 {[%clk 0:01:26]}  h5 {[%clk 0:02:09]} 13. Qh4 {[%clk 0:01:18]}  Nb4 {[%clk 0:02:00]} 14. Nfxd4 {[%clk 0:00:48]}  Nxd3 {[%clk 0:01:49]} 15. Rc2 {[%clk 0:00:39]}  Nxf4 {[%clk 0:01:08]} 16. Qxf4 {[%clk 0:00:38]}  Be7 {[%clk 0:01:08]} 17. Rc3 {[%clk 0:00:28]}  Rc8 {[%clk 0:01:04]} 18. Rxc8+ {[%clk 0:00:19]}  Bxc8 {[%clk 0:01:03]} 19. Rc1 {[%clk 0:00:20]}  Bd7 {[%clk 0:01:03]} 20. Rc3 {[%clk 0:00:19]}  a5 {[%clk 0:00:55]} 21. h4 {[%clk 0:00:10]}  a4 {[%clk 0:00:53]} 22. Nc1 {[%clk 0:00:07]}  Qxb2 {[%clk 0:00:52]} 23. Rg3 {[%clk 0:00:06]}  g6 {[%clk 0:00:43]} 24. Rf3 {[%clk 0:00:06]}  Rf8 {[%clk 0:00:41]} 25. Nd3 {[%clk 0:00:05]}  Qxa2 {[%clk 0:00:36]} 26. Qc1 {[%clk 0:00:05]}  Qc4 {[%clk 0:00:35]} 27. Qb1 {[%clk 0:00:03]}  Qxd4 {[%clk 0:00:30]} 28. Qxb7 {[%clk 0:00:04]}  Qc4 {[%clk 0:00:20]} 29. Rf4 {[%clk 0:00:02]}  d4 {[%clk 0:00:19]} 30. Nb2 {[%clk 0:00:01]}  Qc1+ {[%clk 0:00:18]} 31. Kh2 {[%clk 0:00:01]}  Qxf4+ {[%clk 0:00:18]} 32. Kh3 {[%clk 0:00:01]}  Qxh4# {[%clk 0:00:17]} 0-1


[Site "https://www.chess.com"]

[Event "Titled Tuesday Blitz January 17 Early 2023"]
[White "Harsh Suresh"]
[Black "Sielecki, Christof"]
[WhiteFideId "45018464"]
[BlackFideId "4620437"]
[WhiteElo "2298"]
[BlackElo "2419"]
[Result "1-0"]
[Round "04"]
[TimeControl "180+2"]
[Date "2023.01.17"]
[WhiteClock "0:00:08"]
[BlackClock "0:00:06"]

1. e4 {[%clk 0:03:00]}  c5 {[%clk 0:02:59]} 2. Nc3 {[%clk 0:03:00]}  a6 {[%clk 0:02:59]} 3. g3 {[%clk 0:03:00]}  b5 {[%clk 0:02:58]} 4. Bg2 {[%clk 0:03:01]}  Bb7 {[%clk 0:02:59]} 5. Nge2 {[%clk 0:03:01]}  e6 {[%clk 0:03:00]} 6. O-O {[%clk 0:03:02]}  Nf6 {[%clk 0:02:57]} 7. d4 {[%clk 0:03:01]}  cxd4 {[%clk 0:02:57]} 8. Nxd4 {[%clk 0:02:59]}  b4 {[%clk 0:02:57]} 9. Na4 {[%clk 0:02:58]}  Bxe4 {[%clk 0:02:56]} 10. Bxe4 {[%clk 0:02:55]}  Nxe4 {[%clk 0:02:57]} 11. Re1 {[%clk 0:02:45]}  Nc5 {[%clk 0:02:23]} 12. Qf3 {[%clk 0:01:50]}  Ra7 {[%clk 0:01:55]} 13. Nxc5 {[%clk 0:01:43]}  Bxc5 {[%clk 0:01:56]} 14. Be3 {[%clk 0:01:41]}  Rc7 {[%clk 0:01:39]} 15. Nf5 {[%clk 0:01:08]}  O-O {[%clk 0:01:12]} 16. Bxc5 {[%clk 0:01:08]}  Rxc5 {[%clk 0:01:09]} 17. Nd6 {[%clk 0:01:01]}  Qb6 {[%clk 0:00:56]} 18. Rad1 {[%clk 0:00:58]}  Rxc2 {[%clk 0:00:52]} 19. Re4 {[%clk 0:00:54]}  Nc6 {[%clk 0:00:44]} 20. h4 {[%clk 0:00:40]}  f5 {[%clk 0:00:41]} 21. Rf4 {[%clk 0:00:29]}  Ne5 {[%clk 0:00:36]} 22. Qb3 {[%clk 0:00:28]}  Qc5 {[%clk 0:00:25]} 23. Nxf5 {[%clk 0:00:23]}  Rf7 {[%clk 0:00:14]} 24. Ne3 {[%clk 0:00:13]}  Rxf4 {[%clk 0:00:10]} 25. Qxc2 {[%clk 0:00:12]}  Qxc2 {[%clk 0:00:10]} 26. Nxc2 {[%clk 0:00:13]}  Rc4 {[%clk 0:00:10]} 27. Ne3 {[%clk 0:00:13]}  Rd4 {[%clk 0:00:09]} 28. Rc1 {[%clk 0:00:12]}  Nd3 {[%clk 0:00:07]} 29. Rc8+ {[%clk 0:00:10]}  Kf7 {[%clk 0:00:08]} 30. b3 {[%clk 0:00:11]}  Ne5 {[%clk 0:00:07]} 31. Ra8 {[%clk 0:00:10]}  Rd2 {[%clk 0:00:07]} 32. Rxa6 {[%clk 0:00:10]}  Nd3 {[%clk 0:00:06]} 33. Nc4 {[%clk 0:00:08]} 1-0


[Site "https://www.chess.com"]

[Event "Titled Tuesday Blitz January 17 Early 2023"]
[White "Movsesian, Sergei"]
[Black "Guzman, Christopher"]
[WhiteFideId "310204"]
[BlackFideId "6405096"]
[WhiteElo "2610"]
[BlackElo "2271"]
[Result "1-0"]
[Round "04"]
[TimeControl "180+2"]
[Date "2023.01.17"]
[WhiteClock "0:01:49"]
[BlackClock "0:01:47"]

1. e4 {[%clk 0:03:00]}  c6 {[%clk 0:02:59]} 2. d4 {[%clk 0:03:00]}  d5 {[%clk 0:03:00]} 3. e5 {[%clk 0:03:00]}  Bf5 {[%clk 0:03:00]} 4. Nd2 {[%clk 0:03:01]}  e6 {[%clk 0:03:00]} 5. Nb3 {[%clk 0:03:00]}  c5 {[%clk 0:02:56]} 6. dxc5 {[%clk 0:03:00]}  a5 {[%clk 0:02:53]} 7. a4 {[%clk 0:02:55]}  Nc6 {[%clk 0:02:52]} 8. Bb5 {[%clk 0:02:51]}  f6 {[%clk 0:02:50]} 9. Nf3 {[%clk 0:02:46]}  Qc7 {[%clk 0:02:47]} 10. exf6 {[%clk 0:02:41]}  Nxf6 {[%clk 0:02:44]} 11. Nfd4 {[%clk 0:02:41]}  Bg4 {[%clk 0:02:24]} 12. f3 {[%clk 0:02:39]}  Bf5 {[%clk 0:02:22]} 13. g4 {[%clk 0:02:32]}  Bg6 {[%clk 0:02:15]} 14. Nxe6 {[%clk 0:02:31]}  Qd7 {[%clk 0:02:15]} 15. Qe2 {[%clk 0:02:20]}  Kf7 {[%clk 0:02:11]} 16. Ng5+ {[%clk 0:02:16]}  Kg8 {[%clk 0:02:10]} 17. O-O {[%clk 0:02:15]}  Re8 {[%clk 0:02:09]} 18. Qf2 {[%clk 0:02:13]}  h6 {[%clk 0:02:08]} 19. Nh3 {[%clk 0:02:13]}  Kh7 {[%clk 0:02:01]} 20. Nf4 {[%clk 0:02:12]}  Bf7 {[%clk 0:02:00]} 21. Bd2 {[%clk 0:02:08]}  Qc7 {[%clk 0:01:59]} 22. Rae1 {[%clk 0:02:05]}  Be7 {[%clk 0:01:56]} 23. Bd3+ {[%clk 0:01:58]}  Kg8 {[%clk 0:01:55]} 24. Ng6 {[%clk 0:01:58]}  Bxg6 {[%clk 0:01:52]} 25. Bxg6 {[%clk 0:01:58]}  Rd8 {[%clk 0:01:52]} 26. Re6 {[%clk 0:01:55]}  Ne5 {[%clk 0:01:48]} 27. Bf4 {[%clk 0:01:50]}  Nfd7 {[%clk 0:01:47]} 28. Rxe7 {[%clk 0:01:49]} 1-0


[Site "https://www.chess.com"]

[Event "Titled Tuesday Blitz January 17 Early 2023"]
[White "Yelisieiev, Yevhenii"]
[Black "Harsha Bharathakoti"]
[WhiteFideId "14139642"]
[BlackFideId "5078776"]
[WhiteElo "2418"]
[BlackElo "2602"]
[Result "1-0"]
[Round "04"]
[TimeControl "180+2"]
[Date "2023.01.17"]
[WhiteClock "0:00:10"]
[BlackClock "0:00:02"]

1. d4 {[%clk 0:03:00]}  Nf6 {[%clk 0:02:53]} 2. Nf3 {[%clk 0:03:01]}  c5 {[%clk 0:02:53]} 3. d5 {[%clk 0:03:00]}  b5 {[%clk 0:02:54]} 4. c4 {[%clk 0:02:55]}  b4 {[%clk 0:02:45]} 5. Qc2 {[%clk 0:02:53]}  g6 {[%clk 0:02:39]} 6. a3 {[%clk 0:02:51]}  Bg7 {[%clk 0:02:31]} 7. e4 {[%clk 0:02:42]}  d6 {[%clk 0:02:25]} 8. Bd3 {[%clk 0:02:34]}  O-O {[%clk 0:02:22]} 9. O-O {[%clk 0:02:32]}  Bg4 {[%clk 0:02:10]} 10. Nbd2 {[%clk 0:02:31]}  Nbd7 {[%clk 0:02:04]} 11. h3 {[%clk 0:02:29]}  Bxf3 {[%clk 0:02:03]} 12. Nxf3 {[%clk 0:02:29]}  a5 {[%clk 0:01:59]} 13. Re1 {[%clk 0:02:25]}  Qc7 {[%clk 0:01:53]} 14. Bf4 {[%clk 0:02:16]}  Ne5 {[%clk 0:01:53]} 15. Nxe5 {[%clk 0:02:11]}  dxe5 {[%clk 0:01:52]} 16. Be3 {[%clk 0:02:09]}  Nd7 {[%clk 0:01:50]} 17. axb4 {[%clk 0:01:56]}  axb4 {[%clk 0:01:47]} 18. b3 {[%clk 0:01:55]}  Ra7 {[%clk 0:01:41]} 19. Qb2 {[%clk 0:01:39]}  Rfa8 {[%clk 0:01:40]} 20. g4 {[%clk 0:01:16]}  Ra3 {[%clk 0:01:28]} 21. Rab1 {[%clk 0:00:59]}  Ra2 {[%clk 0:01:26]} 22. Qc1 {[%clk 0:00:59]}  Nb6 {[%clk 0:01:17]} 23. Re2 {[%clk 0:00:58]}  R2a3 {[%clk 0:01:17]} 24. Bc2 {[%clk 0:00:54]}  Nc8 {[%clk 0:01:12]} 25. f3 {[%clk 0:00:53]}  Nd6 {[%clk 0:01:11]} 26. Qf1 {[%clk 0:00:50]}  R8a5 {[%clk 0:00:55]} 27. Bc1 {[%clk 0:00:40]}  Ra2 {[%clk 0:00:52]} 28. Bd3 {[%clk 0:00:36]}  Ra1 {[%clk 0:00:53]} 29. Rxa1 {[%clk 0:00:33]}  Rxa1 {[%clk 0:00:53]} 30. Re1 {[%clk 0:00:33]}  Bf6 {[%clk 0:00:49]} 31. Bb2 {[%clk 0:00:33]}  Ra2 {[%clk 0:00:49]} 32. Qf2 {[%clk 0:00:31]}  Bh4 {[%clk 0:00:48]} 33. Qxh4 {[%clk 0:00:30]}  Rxb2 {[%clk 0:00:49]} 34. Rb1 {[%clk 0:00:29]}  Rd2 {[%clk 0:00:46]} 35. Bf1 {[%clk 0:00:29]}  Qa7 {[%clk 0:00:46]} 36. g5 {[%clk 0:00:22]}  Qa2 {[%clk 0:00:43]} 37. Qe1 {[%clk 0:00:19]}  h5 {[%clk 0:00:35]} 38. gxh6 {[%clk 0:00:18]}  Kh7 {[%clk 0:00:35]} 39. Rd1 {[%clk 0:00:16]}  Rxd1 {[%clk 0:00:31]} 40. Qxd1 {[%clk 0:00:16]}  Qb2 {[%clk 0:00:30]} 41. Bd3 {[%clk 0:00:15]}  Kxh6 {[%clk 0:00:29]} 42. Qc2 {[%clk 0:00:15]}  Qxc2 {[%clk 0:00:25]} 43. Bxc2 {[%clk 0:00:15]}  Kg5 {[%clk 0:00:26]} 44. Kg2 {[%clk 0:00:14]}  Kf4 {[%clk 0:00:26]} 45. Kf2 {[%clk 0:00:14]}  Ne8 {[%clk 0:00:24]} 46. h4 {[%clk 0:00:13]}  Nf6 {[%clk 0:00:15]} 47. Bd3 {[%clk 0:00:13]}  Nh7 {[%clk 0:00:15]} 48. Bf1 {[%clk 0:00:13]}  Nf8 {[%clk 0:00:16]} 49. Bh3 {[%clk 0:00:13]}  Nh7 {[%clk 0:00:16]} 50. Bc8 {[%clk 0:00:12]}  Nf6 {[%clk 0:00:15]} 51. Bh3 {[%clk 0:00:12]}  Nh5 {[%clk 0:00:15]} 52. Bc8 {[%clk 0:00:12]}  g5 {[%clk 0:00:09]} 53. Bg4 {[%clk 0:00:09]}  Nf6 {[%clk 0:00:05]} 54. h5 {[%clk 0:00:09]}  Nh7 {[%clk 0:00:05]} 55. Bf5 {[%clk 0:00:09]}  Nf8 {[%clk 0:00:02]} 56. h6 {[%clk 0:00:09]}  e6 {[%clk 0:00:03]} 57. h7 {[%clk 0:00:09]}  Nxh7 {[%clk 0:00:02]} 58. Bxh7 {[%clk 0:00:10]} 1-0


[Site "https://www.chess.com"]